{"text_format":"3","workbook":"xlsx","n_sheets":4,"sheets":["Začíname","PARAMETRE PROJEKTU","PODROBNOSTI O PROJEKTE","SÚČTY PROJEKTU"],"not_rendered":{"charts":2,"defined_names":3,"pivot_tables":1},"read":"whole","date_system":"1900"}

{"sheet":"Začíname","index":0,"n_rows":8,"n_cols":2,"rows_kept":8}
[null,"INFORMÁCIE O TEJTO ŠABLÓNE"]
[]
[null,"Pomocou tejto šablóny môžete sledovať parametre, podrobnosti a súčty projektov počas plánovanie projektov pre advokátske kancelárie."]
[null,"Vyplnením názov spoločnosti v hárku Parametre projektu sa tento názov automaticky aktualizuje v ďalších hárkoch."]
[null,"Zadaním informácií do hárku Parametre projektu aktualizujte stĺpcové grafy. Informácie zadajte aj do hárku Podrobnosti o projekte. Kontingenčná tabuľka v hárku Súčty projektu sa aktualizuje automaticky."]
[null,"Poznámka:  "]
[null,"V každom hárku sú v stĺpci A uvedené ďalšie pokyny. Tento text je zámerne skrytý. Ak chcete text odstrániť, vyberte stĺpec A a potom stlačte kláves ODSTRÁNIŤ. Ak chcete text zobraziť, vyberte stĺpec A a potom zmeňte farbu písma."]
[null,"Ak chcete získať ďalšie informácie o tabuľkách v hárkoch, v tabuľke stlačte kláves SHIFT a potom kláves F10, vyberte možnosť TABUĽKA a potom vyberte položku ALTERNATÍVNY TEXT. V prípade kontingenčnej tabuľky v hárku Súčty projektu stlačte v tabuľke kláves SHIFT a potom kláves F10, vyberte položku MOŽNOSTI KONTINGENČNEJ TABUĽKY a potom vyberte kartu ALTERNATÍVNY TEXT."]

{"sheet":"PARAMETRE PROJEKTU","index":1,"n_rows":19,"n_cols":9,"rows_kept":19}
["V tomto hárku vytvorte parametre projektu. Do bunky napravo zadajte názov spoločnosti. V bunkách v tomto stĺpci nájdete užitočné pokyny.","Názov spoločnosti"]
["V bunke napravo sa nachádza nadpis tohto hárka.","Plánovanie projektov pre advokátske kancelárie"]
["V bunke napravo sa nachádza správa o dôvernosti.",{"$f":"B1&\" je dôverný\"","v":"Názov spoločnosti je dôverný"}]
["V bunke napravo je uvedený tip.","Tieňované bunky sa vypočítavajú automaticky. Netreba do nich nič zadávať."]
["Do tabuľky Parametre začínajúcej v bunke napravo zadajte podrobnosti. Ďalší pokyn sa nachádza v bunke A12.","TYP PROJEKTU","HLAVNÝ PARTNER","OBCHODNÝ PRÁVNIK","OBHAJCA","PRÁVNIK ŠPECIALIZUJÚCI SA NA DUŠEVNÉ VLASNTÍCTVO","PRÁVNIK ŠPECIALIZUJÚCI SA NA BANKROTY","ADMINISTRATÍVNI ZAMESTNANCI","CELKOVÁ HODNOTA"]
[null,"Založenie podniku",{"v":0.1,"d":"10%"},{"v":0.4,"d":"40%"},{"v":0,"d":"0%"},{"v":0,"d":"0%"},{"v":0,"d":"0%"},{"v":0.5,"d":"50%"},{"$f":"SUM(Parametre[[#This Row],[HLAVNÝ PARTNER]:[ADMINISTRATÍVNI ZAMESTNANCI]])","v":{"v":1,"d":"100%"}}]
[null,"Akvizícia podniku",{"v":0.1,"d":"10%"},{"v":0.4,"d":"40%"},{"v":0,"d":"0%"},{"v":0.1,"d":"10%"},{"v":0,"d":"0%"},{"v":0.4,"d":"40%"},{"$f":"SUM(Parametre[[#This Row],[HLAVNÝ PARTNER]:[ADMINISTRATÍVNI ZAMESTNANCI]])","v":{"v":1,"d":"100%"}}]
[null,"Zodpovednosť za výrobok – obhajoba",{"v":0.2,"d":"20%"},{"v":0,"d":"0%"},{"v":0.5,"d":"50%"},{"v":0,"d":"0%"},{"v":0,"d":"0%"},{"v":0.3,"d":"30%"},{"$f":"SUM(Parametre[[#This Row],[HLAVNÝ PARTNER]:[ADMINISTRATÍVNI ZAMESTNANCI]])","v":{"v":1,"d":"100%"}}]
[null,"Patentová prihláška",{"v":0.1,"d":"10%"},{"v":0,"d":"0%"},{"v":0,"d":"0%"},{"v":0.6,"d":"60%"},{"v":0,"d":"0%"},{"v":0.3,"d":"30%"},{"$f":"SUM(Parametre[[#This Row],[HLAVNÝ PARTNER]:[ADMINISTRATÍVNI ZAMESTNANCI]])","v":{"v":1,"d":"100%"}}]
[null,"Súdne spory so zamestnancami",{"v":0.2,"d":"20%"},{"v":0.1,"d":"10%"},{"v":0.4,"d":"40%"},{"v":0,"d":"0%"},{"v":0,"d":"0%"},{"v":0.3,"d":"30%"},{"$f":"SUM(Parametre[[#This Row],[HLAVNÝ PARTNER]:[ADMINISTRATÍVNI ZAMESTNANCI]])","v":{"v":1,"d":"100%"}}]
[null,"Bankrot",{"v":0.1,"d":"10%"},{"v":0.2,"d":"20%"},{"v":0,"d":"0%"},{"v":0,"d":"0%"},{"v":0.4,"d":"40%"},{"v":0.3,"d":"30%"},{"$f":"SUM(Parametre[[#This Row],[HLAVNÝ PARTNER]:[ADMINISTRATÍVNI ZAMESTNANCI]])","v":{"v":1,"d":"100%"}}]
["Do buniek C12 až H12 napravo zadajte spojené sadzby. Ďalší pokyn je v bunke A14.","Spojené sadzby",{"v":350,"d":"350 EUR"},{"v":250,"d":"250 EUR"},{"v":300,"d":"300 EUR"},{"v":275,"d":"275 EUR"},{"v":225,"d":"225 EUR"},{"v":125,"d":"125 EUR"}]
[]
["Stĺpcový graf zobrazujúci porovnanie plánovaných a skutočných nákladov je v bunke vpravo a stĺpcový graf zobrazujúci porovnanie plánovaného a skutočného počtu hodín je v bunke F14."]
[null,null,"HLAVNÝ PARTNER","PODNIK","OBHAJCA","DUŠEVNÉ VLAST.","BANKROT","ADMINISTRATÍVNI ZAMESTNANCI"]
[null,"PLÁNOVANÉ NÁKLADY",{"$f":"SUBTOTAL(109,Podrobnosti[HLAVNÝ PARTNER])","v":{"v":78750,"d":"78,750.00 EUR"}},{"$f":"SUBTOTAL(109,Podrobnosti[OBCHODNÝ PRÁVNIK])","v":{"v":66250,"d":"66,250.00 EUR"}},{"$f":"SUBTOTAL(109,Podrobnosti[OBHAJCA])","v":{"v":105000,"d":"105,000.00 EUR"}},{"$f":"SUBTOTAL(109,Podrobnosti[PRÁVNIK ŠPECIALIZUJÚCI SA NA DUŠEVNÉ VLASNTÍCTVO])","v":{"v":35750,"d":"35,750.00 EUR"}},{"$f":"SUBTOTAL(109,Podrobnosti[PRÁVNIK ŠPECIALIZUJÚCI SA NA BANKROTY])","v":{"v":0,"d":"0.00 EUR"}},{"$f":"SUBTOTAL(109,Podrobnosti[ADMINISTRATÍVNI ZAMESTNANCI])","v":{"v":66250,"d":"66,250.00 EUR"}}]
[null,"A SKUTOČNÝCH NÁKLADOV",{"$f":"SUBTOTAL(109,Podrobnosti[HLAVNÝ PARTNER 2])","v":{"v":79275,"d":"79,275.00 EUR"}},{"$f":"SUBTOTAL(109,Podrobnosti[OBCHODNÝ PRÁVNIK 2])","v":{"v":67375,"d":"67,375.00 EUR"}},{"$f":"SUBTOTAL(109,Podrobnosti[OBHAJCA 2])","v":{"v":105600,"d":"105,600.00 EUR"}},{"$f":"SUBTOTAL(109,Podrobnosti[PRÁVNIK ŠPECIALIZUJÚCI SA NA DUŠEVNÉ VLASNTÍCTVO 2])","v":{"v":34650,"d":"34,650.00 EUR"}},{"$f":"SUBTOTAL(109,Podrobnosti[PRÁVNIK ŠPECIALIZUJÚCI SA NA BANKROTY 2])","v":{"v":0,"d":"0.00 EUR"}},{"$f":"SUBTOTAL(109,Podrobnosti[ADMINISTRATÍVNI ZAMESTNANCI 2])","v":{"v":67000,"d":"67,000.00 EUR"}}]
[null,"PLÁNOVANÝ POČET HODÍN",{"$f":"C16/$C$12","v":{"v":225,"d":"225.00"}},{"$f":"D16/$C$12","v":{"v":189.28571428571428,"d":"189.29"}},{"v":300,"d":"300.00"},{"v":102.14285714285714,"d":"102.14"},{"v":0,"d":"0.00"},{"v":189.28571428571428,"d":"189.29"}]
[null,"A SKUTOČNÉHO POČTU HODÍN",{"$f":"C17/$C$12","v":{"v":226.5,"d":"226.50"}},{"$f":"D17/$C$12","v":{"v":192.5,"d":"192.50"}},{"$f":"E17/$C$12","v":{"v":301.7142857142857,"d":"301.71"}},{"$f":"F17/$C$12","v":{"v":99,"d":"99.00"}},{"$f":"G17/$C$12","v":{"v":0,"d":"0.00"}},{"$f":"H17/$C$12","v":{"v":191.42857142857142,"d":"191.43"}}]

{"sheet":"PODROBNOSTI O PROJEKTE","index":2,"n_rows":10,"n_cols":25,"rows_kept":10,"merged":[[1,24,8,28]]}
["V tomto hárku uveďte podrobnosti projektu. Názov spoločnosti v bunke napravo sa aktualizuje automaticky. V bunkách v tomto stĺpci nájdete užitočné pokyny. Začnite stlačením šípky nadol.",{"$f":"'PARAMETRE PROJEKTU'!B1","v":"Názov spoločnosti"}]
["V bunke napravo je uvedený nadpis hárka. V bunke Y2 je informačný tip.",{"$f":"'PARAMETRE PROJEKTU'!B2","v":"Plánovanie projektov pre advokátske kancelárie"},{"$nulls":22},"INFORMÁCIE:\nAk chcete do tabuľky pridať riadok, vyberte pravú dolnú bunku tela tabuľky (nie v riadku súčtov) a stlačte kláves Tab. Prípadne na mieste tabuľky, kam chcete vložiť riadok, stlačte kláves SHIFT, potom kláves F10 a vyberte položky Vložiť | Riadok tabuľky nad/pod.\nNezabudnite odstrániť všetky nevyužité riadky, pretože kontingenčná tabuľka SÚČTY PROJEKTU použije všetky bunky tabuľky. Ak tak neurobíte, vráti chybné výsledky."]
["V bunke napravo sa nachádza správa o dôvernosti.",{"$f":"'PARAMETRE PROJEKTU'!B3","v":"Názov spoločnosti je dôverný"}]
["Do tabuľky Podrobnosti začínajúcej v bunke napravo zadajte príslušné informácie. Typ projektu v tabuľke Podrobnosti vpravo sa automaticky aktualizujú na základe tabuľky Parametre hárka Parametre projektu.","NÁZOV PROJEKTU","TYP PROJEKTU","ODHADOVANÝ ZAČIATOK","OKHADOVANÝ KONIEC","SKUTOČNÝ ZAČIATOK","SKUTOČNÝ KONIEC","ODHADOVANÁ PRÁCA","SKUTOČNÁ PRÁCA","ODHADOVANÉ TRVANIE","SKUTOČNÉ TRVANIE","HLAVNÝ PARTNER","OBCHODNÝ PRÁVNIK","OBHAJCA","PRÁVNIK ŠPECIALIZUJÚCI SA NA DUŠEVNÉ VLASNTÍCTVO","PRÁVNIK ŠPECIALIZUJÚCI SA NA BANKROTY","ADMINISTRATÍVNI ZAMESTNANCI","HLAVNÝ PARTNER 2","OBCHODNÝ PRÁVNIK 2","OBHAJCA 2","PRÁVNIK ŠPECIALIZUJÚCI SA NA DUŠEVNÉ VLASNTÍCTVO 2","PRÁVNIK ŠPECIALIZUJÚCI SA NA BANKROTY 2","ADMINISTRATÍVNI ZAMESTNANCI 2"]
[null,"Projekt 1","Založenie podniku",{"$f":"TODAY()","v":"2019-02-19"},{"$f":"TODAY()+60","v":"2019-04-20"},{"$f":"TODAY()+10","v":"2019-03-01"},{"$f":"TODAY()+65","v":"2019-04-25"},200,220,{"$f":"DAYS360(Podrobnosti[[#This Row],[ODHADOVANÝ ZAČIATOK]],Podrobnosti[[#This Row],[OKHADOVANÝ KONIEC]],FALSE)","v":61},{"$f":"DAYS360(Podrobnosti[[#This Row],[SKUTOČNÝ ZAČIATOK]],Podrobnosti[[#This Row],[SKUTOČNÝ KONIEC]],FALSE)","v":54},{"$f":"INDEX(Parametre[],MATCH(Podrobnosti[[#This Row],[TYP PROJEKTU]],Parametre[TYP PROJEKTU],0),MATCH(Podrobnosti[[#Headers],[HLAVNÝ PARTNER]],Parametre[#Headers],0))*INDEX('PARAMETRE PROJEKTU'!$B$12:$H$12,1,MATCH(Podrobnosti[[#Headers],[HLAVNÝ PARTNER]],Parametre[#Headers],0))*Podrobnosti[[#This Row],[ODHADOVANÁ PRÁCA]]","v":{"v":7000,"d":"7,000 EUR"}},{"$f":"INDEX(Parametre[],MATCH(Podrobnosti[[#This Row],[TYP PROJEKTU]],Parametre[TYP PROJEKTU],0),MATCH(Podrobnosti[[#Headers],[OBCHODNÝ PRÁVNIK]],Parametre[#Headers],0))*INDEX('PARAMETRE PROJEKTU'!$B$12:$H$12,1,MATCH(Podrobnosti[[#Headers],[OBCHODNÝ PRÁVNIK]],Parametre[#Headers],0))*Podrobnosti[[#This Row],[ODHADOVANÁ PRÁCA]]","v":{"v":20000,"d":"20,000 EUR"}},{"$f":"INDEX(Parametre[],MATCH(Podrobnosti[[#This Row],[TYP PROJEKTU]],Parametre[TYP PROJEKTU],0),MATCH(Podrobnosti[[#Headers],[OBHAJCA]],Parametre[#Headers],0))*INDEX('PARAMETRE PROJEKTU'!$B$12:$H$12,1,MATCH(Podrobnosti[[#Headers],[OBHAJCA]],Parametre[#Headers],0))*Podrobnosti[[#This Row],[ODHADOVANÁ PRÁCA]]","v":{"v":0,"d":"0 EUR"}},{"$f":"INDEX(Parametre[],MATCH(Podrobnosti[[#This Row],[TYP PROJEKTU]],Parametre[TYP PROJEKTU],0),MATCH(Podrobnosti[[#Headers],[PRÁVNIK ŠPECIALIZUJÚCI SA NA DUŠEVNÉ VLASNTÍCTVO]],Parametre[#Headers],0))*INDEX('PARAMETRE PROJEKTU'!$B$12:$H$12,1,MATCH(Podrobnosti[[#Headers],[PRÁVNIK ŠPECIALIZUJÚCI SA NA DUŠEVNÉ VLASNTÍCTVO]],Parametre[#Headers],0))*Podrobnosti[[#This Row],[ODHADOVANÁ PRÁCA]]","v":{"v":0,"d":"0 EUR"}},{"$f":"INDEX(Parametre[],MATCH(Podrobnosti[[#This Row],[TYP PROJEKTU]],Parametre[TYP PROJEKTU],0),MATCH(Podrobnosti[[#Headers],[PRÁVNIK ŠPECIALIZUJÚCI SA NA BANKROTY]],Parametre[#Headers],0))*INDEX('PARAMETRE PROJEKTU'!$B$12:$H$12,1,MATCH(Podrobnosti[[#Headers],[PRÁVNIK ŠPECIALIZUJÚCI SA NA BANKROTY]],Parametre[#Headers],0))*Podrobnosti[[#This Row],[ODHADOVANÁ PRÁCA]]","v":{"v":0,"d":"0 EUR"}},{"$f":"INDEX(Parametre[],MATCH(Podrobnosti[[#This Row],[TYP PROJEKTU]],Parametre[TYP PROJEKTU],0),MATCH(Podrobnosti[[#Headers],[ADMINISTRATÍVNI ZAMESTNANCI]],Parametre[#Headers],0))*INDEX('PARAMETRE PROJEKTU'!$B$12:$H$12,1,MATCH(Podrobnosti[[#Headers],[ADMINISTRATÍVNI ZAMESTNANCI]],Parametre[#Headers],0))*Podrobnosti[[#This Row],[ODHADOVANÁ PRÁCA]]","v":{"v":12500,"d":"12,500 EUR"}},{"$f":"INDEX(Parametre[],MATCH(Podrobnosti[[#This Row],[TYP PROJEKTU]],Parametre[TYP PROJEKTU],0),MATCH(Podrobnosti[[#Headers],[HLAVNÝ PARTNER]],Parametre[#Headers],0))*INDEX('PARAMETRE PROJEKTU'!$B$12:$H$12,1,MATCH(Podrobnosti[[#Headers],[HLAVNÝ PARTNER]],Parametre[#Headers],0))*Podrobnosti[[#This Row],[SKUTOČNÁ PRÁCA]]","v":{"v":7700,"d":"7,700 EUR"}},{"$f":"INDEX(Parametre[],MATCH(Podrobnosti[[#This Row],[TYP PROJEKTU]],Parametre[TYP PROJEKTU],0),MATCH(Podrobnosti[[#Headers],[OBCHODNÝ PRÁVNIK]],Parametre[#Headers],0))*INDEX('PARAMETRE PROJEKTU'!$B$12:$H$12,1,MATCH(Podrobnosti[[#Headers],[OBCHODNÝ PRÁVNIK]],Parametre[#Headers],0))*Podrobnosti[[#This Row],[SKUTOČNÁ PRÁCA]]","v":{"v":22000,"d":"22,000 EUR"}},{"$f":"INDEX(Parametre[],MATCH(Podrobnosti[[#This Row],[TYP PROJEKTU]],Parametre[TYP PROJEKTU],0),MATCH(Podrobnosti[[#Headers],[OBHAJCA]],Parametre[#Headers],0))*INDEX('PARAMETRE PROJEKTU'!$B$12:$H$12,1,MATCH(Podrobnosti[[#Headers],[OBHAJCA]],Parametre[#Headers],0))*Podrobnosti[[#This Row],[SKUTOČNÁ PRÁCA]]","v":{"v":0,"d":"0 EUR"}},{"$f":"INDEX(Parametre[],MATCH(Podrobnosti[[#This Row],[TYP PROJEKTU]],Parametre[TYP PROJEKTU],0),MATCH(Podrobnosti[[#Headers],[PRÁVNIK ŠPECIALIZUJÚCI SA NA DUŠEVNÉ VLASNTÍCTVO]],Parametre[#Headers],0))*INDEX('PARAMETRE PROJEKTU'!$B$12:$H$12,1,MATCH(Podrobnosti[[#Headers],[PRÁVNIK ŠPECIALIZUJÚCI SA NA DUŠEVNÉ VLASNTÍCTVO]],Parametre[#Headers],0))*Podrobnosti[[#This Row],[SKUTOČNÁ PRÁCA]]","v":{"v":0,"d":"0 EUR"}},{"$f":"INDEX(Parametre[],MATCH(Podrobnosti[[#This Row],[TYP PROJEKTU]],Parametre[TYP PROJEKTU],0),MATCH(Podrobnosti[[#Headers],[PRÁVNIK ŠPECIALIZUJÚCI SA NA BANKROTY]],Parametre[#Headers],0))*INDEX('PARAMETRE PROJEKTU'!$B$12:$H$12,1,MATCH(Podrobnosti[[#Headers],[PRÁVNIK ŠPECIALIZUJÚCI SA NA BANKROTY]],Parametre[#Headers],0))*Podrobnosti[[#This Row],[SKUTOČNÁ PRÁCA]]","v":{"v":0,"d":"0 EUR"}},{"$f":"INDEX(Parametre[],MATCH(Podrobnosti[[#This Row],[TYP PROJEKTU]],Parametre[TYP PROJEKTU],0),MATCH(Podrobnosti[[#Headers],[ADMINISTRATÍVNI ZAMESTNANCI]],Parametre[#Headers],0))*INDEX('PARAMETRE PROJEKTU'!$B$12:$H$12,1,MATCH(Podrobnosti[[#Headers],[ADMINISTRATÍVNI ZAMESTNANCI]],Parametre[#Headers],0))*Podrobnosti[[#This Row],[SKUTOČNÁ PRÁCA]]","v":{"v":13750,"d":"13,750 EUR"}}]
[null,"Projekt 2","Akvizícia podniku",{"$f":"TODAY()+30","v":"2019-03-21"},{"$f":"TODAY()+100","v":"2019-05-30"},{"$f":"TODAY()+40","v":"2019-03-31"},{"$f":"TODAY()+110","v":"2019-06-09"},400,390,{"$f":"DAYS360(Podrobnosti[[#This Row],[ODHADOVANÝ ZAČIATOK]],Podrobnosti[[#This Row],[OKHADOVANÝ KONIEC]],FALSE)","v":69},{"$f":"DAYS360(Podrobnosti[[#This Row],[SKUTOČNÝ ZAČIATOK]],Podrobnosti[[#This Row],[SKUTOČNÝ KONIEC]],FALSE)","v":69},{"$f":"INDEX(Parametre[],MATCH(Podrobnosti[[#This Row],[TYP PROJEKTU]],Parametre[TYP PROJEKTU],0),MATCH(Podrobnosti[[#Headers],[HLAVNÝ PARTNER]],Parametre[#Headers],0))*INDEX('PARAMETRE PROJEKTU'!$B$12:$H$12,1,MATCH(Podrobnosti[[#Headers],[HLAVNÝ PARTNER]],Parametre[#Headers],0))*Podrobnosti[[#This Row],[ODHADOVANÁ PRÁCA]]","v":{"v":14000,"d":"14,000 EUR"}},{"$f":"INDEX(Parametre[],MATCH(Podrobnosti[[#This Row],[TYP PROJEKTU]],Parametre[TYP PROJEKTU],0),MATCH(Podrobnosti[[#Headers],[OBCHODNÝ PRÁVNIK]],Parametre[#Headers],0))*INDEX('PARAMETRE PROJEKTU'!$B$12:$H$12,1,MATCH(Podrobnosti[[#Headers],[OBCHODNÝ PRÁVNIK]],Parametre[#Headers],0))*Podrobnosti[[#This Row],[ODHADOVANÁ PRÁCA]]","v":{"v":40000,"d":"40,000 EUR"}},{"$f":"INDEX(Parametre[],MATCH(Podrobnosti[[#This Row],[TYP PROJEKTU]],Parametre[TYP PROJEKTU],0),MATCH(Podrobnosti[[#Headers],[OBHAJCA]],Parametre[#Headers],0))*INDEX('PARAMETRE PROJEKTU'!$B$12:$H$12,1,MATCH(Podrobnosti[[#Headers],[OBHAJCA]],Parametre[#Headers],0))*Podrobnosti[[#This Row],[ODHADOVANÁ PRÁCA]]","v":{"v":0,"d":"0 EUR"}},{"$f":"INDEX(Parametre[],MATCH(Podrobnosti[[#This Row],[TYP PROJEKTU]],Parametre[TYP PROJEKTU],0),MATCH(Podrobnosti[[#Headers],[PRÁVNIK ŠPECIALIZUJÚCI SA NA DUŠEVNÉ VLASNTÍCTVO]],Parametre[#Headers],0))*INDEX('PARAMETRE PROJEKTU'!$B$12:$H$12,1,MATCH(Podrobnosti[[#Headers],[PRÁVNIK ŠPECIALIZUJÚCI SA NA DUŠEVNÉ VLASNTÍCTVO]],Parametre[#Headers],0))*Podrobnosti[[#This Row],[ODHADOVANÁ PRÁCA]]","v":{"v":11000,"d":"11,000 EUR"}},{"$f":"INDEX(Parametre[],MATCH(Podrobnosti[[#This Row],[TYP PROJEKTU]],Parametre[TYP PROJEKTU],0),MATCH(Podrobnosti[[#Headers],[PRÁVNIK ŠPECIALIZUJÚCI SA NA BANKROTY]],Parametre[#Headers],0))*INDEX('PARAMETRE PROJEKTU'!$B$12:$H$12,1,MATCH(Podrobnosti[[#Headers],[PRÁVNIK ŠPECIALIZUJÚCI SA NA BANKROTY]],Parametre[#Headers],0))*Podrobnosti[[#This Row],[ODHADOVANÁ PRÁCA]]","v":{"v":0,"d":"0 EUR"}},{"$f":"INDEX(Parametre[],MATCH(Podrobnosti[[#This Row],[TYP PROJEKTU]],Parametre[TYP PROJEKTU],0),MATCH(Podrobnosti[[#Headers],[ADMINISTRATÍVNI ZAMESTNANCI]],Parametre[#Headers],0))*INDEX('PARAMETRE PROJEKTU'!$B$12:$H$12,1,MATCH(Podrobnosti[[#Headers],[ADMINISTRATÍVNI ZAMESTNANCI]],Parametre[#Headers],0))*Podrobnosti[[#This Row],[ODHADOVANÁ PRÁCA]]","v":{"v":20000,"d":"20,000 EUR"}},{"$f":"INDEX(Parametre[],MATCH(Podrobnosti[[#This Row],[TYP PROJEKTU]],Parametre[TYP PROJEKTU],0),MATCH(Podrobnosti[[#Headers],[HLAVNÝ PARTNER]],Parametre[#Headers],0))*INDEX('PARAMETRE PROJEKTU'!$B$12:$H$12,1,MATCH(Podrobnosti[[#Headers],[HLAVNÝ PARTNER]],Parametre[#Headers],0))*Podrobnosti[[#This Row],[SKUTOČNÁ PRÁCA]]","v":{"v":13650,"d":"13,650 EUR"}},{"$f":"INDEX(Parametre[],MATCH(Podrobnosti[[#This Row],[TYP PROJEKTU]],Parametre[TYP PROJEKTU],0),MATCH(Podrobnosti[[#Headers],[OBCHODNÝ PRÁVNIK]],Parametre[#Headers],0))*INDEX('PARAMETRE PROJEKTU'!$B$12:$H$12,1,MATCH(Podrobnosti[[#Headers],[OBCHODNÝ PRÁVNIK]],Parametre[#Headers],0))*Podrobnosti[[#This Row],[SKUTOČNÁ PRÁCA]]","v":{"v":39000,"d":"39,000 EUR"}},{"$f":"INDEX(Parametre[],MATCH(Podrobnosti[[#This Row],[TYP PROJEKTU]],Parametre[TYP PROJEKTU],0),MATCH(Podrobnosti[[#Headers],[OBHAJCA]],Parametre[#Headers],0))*INDEX('PARAMETRE PROJEKTU'!$B$12:$H$12,1,MATCH(Podrobnosti[[#Headers],[OBHAJCA]],Parametre[#Headers],0))*Podrobnosti[[#This Row],[SKUTOČNÁ PRÁCA]]","v":{"v":0,"d":"0 EUR"}},{"$f":"INDEX(Parametre[],MATCH(Podrobnosti[[#This Row],[TYP PROJEKTU]],Parametre[TYP PROJEKTU],0),MATCH(Podrobnosti[[#Headers],[PRÁVNIK ŠPECIALIZUJÚCI SA NA DUŠEVNÉ VLASNTÍCTVO]],Parametre[#Headers],0))*INDEX('PARAMETRE PROJEKTU'!$B$12:$H$12,1,MATCH(Podrobnosti[[#Headers],[PRÁVNIK ŠPECIALIZUJÚCI SA NA DUŠEVNÉ VLASNTÍCTVO]],Parametre[#Headers],0))*Podrobnosti[[#This Row],[SKUTOČNÁ PRÁCA]]","v":{"v":10725,"d":"10,725 EUR"}},{"$f":"INDEX(Parametre[],MATCH(Podrobnosti[[#This Row],[TYP PROJEKTU]],Parametre[TYP PROJEKTU],0),MATCH(Podrobnosti[[#Headers],[PRÁVNIK ŠPECIALIZUJÚCI SA NA BANKROTY]],Parametre[#Headers],0))*INDEX('PARAMETRE PROJEKTU'!$B$12:$H$12,1,MATCH(Podrobnosti[[#Headers],[PRÁVNIK ŠPECIALIZUJÚCI SA NA BANKROTY]],Parametre[#Headers],0))*Podrobnosti[[#This Row],[SKUTOČNÁ PRÁCA]]","v":{"v":0,"d":"0 EUR"}},{"$f":"INDEX(Parametre[],MATCH(Podrobnosti[[#This Row],[TYP PROJEKTU]],Parametre[TYP PROJEKTU],0),MATCH(Podrobnosti[[#Headers],[ADMINISTRATÍVNI ZAMESTNANCI]],Parametre[#Headers],0))*INDEX('PARAMETRE PROJEKTU'!$B$12:$H$12,1,MATCH(Podrobnosti[[#Headers],[ADMINISTRATÍVNI ZAMESTNANCI]],Parametre[#Headers],0))*Podrobnosti[[#This Row],[SKUTOČNÁ PRÁCA]]","v":{"v":19500,"d":"19,500 EUR"}}]
[null,"Projekt 3","Zodpovednosť za výrobok – obhajoba",{"$f":"TODAY()+150","v":"2019-07-19"},{"$f":"TODAY()+150","v":"2019-07-19"},{"$f":"TODAY()+150","v":"2019-07-19"},{"$f":"TODAY()+170","v":"2019-08-08"},500,500,{"$f":"DAYS360(Podrobnosti[[#This Row],[ODHADOVANÝ ZAČIATOK]],Podrobnosti[[#This Row],[OKHADOVANÝ KONIEC]],FALSE)","v":0},{"$f":"DAYS360(Podrobnosti[[#This Row],[SKUTOČNÝ ZAČIATOK]],Podrobnosti[[#This Row],[SKUTOČNÝ KONIEC]],FALSE)","v":19},{"$f":"INDEX(Parametre[],MATCH(Podrobnosti[[#This Row],[TYP PROJEKTU]],Parametre[TYP PROJEKTU],0),MATCH(Podrobnosti[[#Headers],[HLAVNÝ PARTNER]],Parametre[#Headers],0))*INDEX('PARAMETRE PROJEKTU'!$B$12:$H$12,1,MATCH(Podrobnosti[[#Headers],[HLAVNÝ PARTNER]],Parametre[#Headers],0))*Podrobnosti[[#This Row],[ODHADOVANÁ PRÁCA]]","v":{"v":35000,"d":"35,000 EUR"}},{"$f":"INDEX(Parametre[],MATCH(Podrobnosti[[#This Row],[TYP PROJEKTU]],Parametre[TYP PROJEKTU],0),MATCH(Podrobnosti[[#Headers],[OBCHODNÝ PRÁVNIK]],Parametre[#Headers],0))*INDEX('PARAMETRE PROJEKTU'!$B$12:$H$12,1,MATCH(Podrobnosti[[#Headers],[OBCHODNÝ PRÁVNIK]],Parametre[#Headers],0))*Podrobnosti[[#This Row],[ODHADOVANÁ PRÁCA]]","v":{"v":0,"d":"0 EUR"}},{"$f":"INDEX(Parametre[],MATCH(Podrobnosti[[#This Row],[TYP PROJEKTU]],Parametre[TYP PROJEKTU],0),MATCH(Podrobnosti[[#Headers],[OBHAJCA]],Parametre[#Headers],0))*INDEX('PARAMETRE PROJEKTU'!$B$12:$H$12,1,MATCH(Podrobnosti[[#Headers],[OBHAJCA]],Parametre[#Headers],0))*Podrobnosti[[#This Row],[ODHADOVANÁ PRÁCA]]","v":{"v":75000,"d":"75,000 EUR"}},{"$f":"INDEX(Parametre[],MATCH(Podrobnosti[[#This Row],[TYP PROJEKTU]],Parametre[TYP PROJEKTU],0),MATCH(Podrobnosti[[#Headers],[PRÁVNIK ŠPECIALIZUJÚCI SA NA DUŠEVNÉ VLASNTÍCTVO]],Parametre[#Headers],0))*INDEX('PARAMETRE PROJEKTU'!$B$12:$H$12,1,MATCH(Podrobnosti[[#Headers],[PRÁVNIK ŠPECIALIZUJÚCI SA NA DUŠEVNÉ VLASNTÍCTVO]],Parametre[#Headers],0))*Podrobnosti[[#This Row],[ODHADOVANÁ PRÁCA]]","v":{"v":0,"d":"0 EUR"}},{"$f":"INDEX(Parametre[],MATCH(Podrobnosti[[#This Row],[TYP PROJEKTU]],Parametre[TYP PROJEKTU],0),MATCH(Podrobnosti[[#Headers],[PRÁVNIK ŠPECIALIZUJÚCI SA NA BANKROTY]],Parametre[#Headers],0))*INDEX('PARAMETRE PROJEKTU'!$B$12:$H$12,1,MATCH(Podrobnosti[[#Headers],[PRÁVNIK ŠPECIALIZUJÚCI SA NA BANKROTY]],Parametre[#Headers],0))*Podrobnosti[[#This Row],[ODHADOVANÁ PRÁCA]]","v":{"v":0,"d":"0 EUR"}},{"$f":"INDEX(Parametre[],MATCH(Podrobnosti[[#This Row],[TYP PROJEKTU]],Parametre[TYP PROJEKTU],0),MATCH(Podrobnosti[[#Headers],[ADMINISTRATÍVNI ZAMESTNANCI]],Parametre[#Headers],0))*INDEX('PARAMETRE PROJEKTU'!$B$12:$H$12,1,MATCH(Podrobnosti[[#Headers],[ADMINISTRATÍVNI ZAMESTNANCI]],Parametre[#Headers],0))*Podrobnosti[[#This Row],[ODHADOVANÁ PRÁCA]]","v":{"v":18750,"d":"18,750 EUR"}},{"$f":"INDEX(Parametre[],MATCH(Podrobnosti[[#This Row],[TYP PROJEKTU]],Parametre[TYP PROJEKTU],0),MATCH(Podrobnosti[[#Headers],[HLAVNÝ PARTNER]],Parametre[#Headers],0))*INDEX('PARAMETRE PROJEKTU'!$B$12:$H$12,1,MATCH(Podrobnosti[[#Headers],[HLAVNÝ PARTNER]],Parametre[#Headers],0))*Podrobnosti[[#This Row],[SKUTOČNÁ PRÁCA]]","v":{"v":35000,"d":"35,000 EUR"}},{"$f":"INDEX(Parametre[],MATCH(Podrobnosti[[#This Row],[TYP PROJEKTU]],Parametre[TYP PROJEKTU],0),MATCH(Podrobnosti[[#Headers],[OBCHODNÝ PRÁVNIK]],Parametre[#Headers],0))*INDEX('PARAMETRE PROJEKTU'!$B$12:$H$12,1,MATCH(Podrobnosti[[#Headers],[OBCHODNÝ PRÁVNIK]],Parametre[#Headers],0))*Podrobnosti[[#This Row],[SKUTOČNÁ PRÁCA]]","v":{"v":0,"d":"0 EUR"}},{"$f":"INDEX(Parametre[],MATCH(Podrobnosti[[#This Row],[TYP PROJEKTU]],Parametre[TYP PROJEKTU],0),MATCH(Podrobnosti[[#Headers],[OBHAJCA]],Parametre[#Headers],0))*INDEX('PARAMETRE PROJEKTU'!$B$12:$H$12,1,MATCH(Podrobnosti[[#Headers],[OBHAJCA]],Parametre[#Headers],0))*Podrobnosti[[#This Row],[SKUTOČNÁ PRÁCA]]","v":{"v":75000,"d":"75,000 EUR"}},{"$f":"INDEX(Parametre[],MATCH(Podrobnosti[[#This Row],[TYP PROJEKTU]],Parametre[TYP PROJEKTU],0),MATCH(Podrobnosti[[#Headers],[PRÁVNIK ŠPECIALIZUJÚCI SA NA DUŠEVNÉ VLASNTÍCTVO]],Parametre[#Headers],0))*INDEX('PARAMETRE PROJEKTU'!$B$12:$H$12,1,MATCH(Podrobnosti[[#Headers],[PRÁVNIK ŠPECIALIZUJÚCI SA NA DUŠEVNÉ VLASNTÍCTVO]],Parametre[#Headers],0))*Podrobnosti[[#This Row],[SKUTOČNÁ PRÁCA]]","v":{"v":0,"d":"0 EUR"}},{"$f":"INDEX(Parametre[],MATCH(Podrobnosti[[#This Row],[TYP PROJEKTU]],Parametre[TYP PROJEKTU],0),MATCH(Podrobnosti[[#Headers],[PRÁVNIK ŠPECIALIZUJÚCI SA NA BANKROTY]],Parametre[#Headers],0))*INDEX('PARAMETRE PROJEKTU'!$B$12:$H$12,1,MATCH(Podrobnosti[[#Headers],[PRÁVNIK ŠPECIALIZUJÚCI SA NA BANKROTY]],Parametre[#Headers],0))*Podrobnosti[[#This Row],[SKUTOČNÁ PRÁCA]]","v":{"v":0,"d":"0 EUR"}},{"$f":"INDEX(Parametre[],MATCH(Podrobnosti[[#This Row],[TYP PROJEKTU]],Parametre[TYP PROJEKTU],0),MATCH(Podrobnosti[[#Headers],[ADMINISTRATÍVNI ZAMESTNANCI]],Parametre[#Headers],0))*INDEX('PARAMETRE PROJEKTU'!$B$12:$H$12,1,MATCH(Podrobnosti[[#Headers],[ADMINISTRATÍVNI ZAMESTNANCI]],Parametre[#Headers],0))*Podrobnosti[[#This Row],[SKUTOČNÁ PRÁCA]]","v":{"v":18750,"d":"18,750 EUR"}}]
[null,"Projekt 4","Patentová prihláška",{"$f":"TODAY()+200","v":"2019-09-07"},{"$f":"TODAY()+230","v":"2019-10-07"},{"$f":"TODAY()+230","v":"2019-10-07"},{"$f":"TODAY()+230","v":"2019-10-07"},150,145,{"$f":"DAYS360(Podrobnosti[[#This Row],[ODHADOVANÝ ZAČIATOK]],Podrobnosti[[#This Row],[OKHADOVANÝ KONIEC]],FALSE)","v":30},{"$f":"DAYS360(Podrobnosti[[#This Row],[SKUTOČNÝ ZAČIATOK]],Podrobnosti[[#This Row],[SKUTOČNÝ KONIEC]],FALSE)","v":0},{"$f":"INDEX(Parametre[],MATCH(Podrobnosti[[#This Row],[TYP PROJEKTU]],Parametre[TYP PROJEKTU],0),MATCH(Podrobnosti[[#Headers],[HLAVNÝ PARTNER]],Parametre[#Headers],0))*INDEX('PARAMETRE PROJEKTU'!$B$12:$H$12,1,MATCH(Podrobnosti[[#Headers],[HLAVNÝ PARTNER]],Parametre[#Headers],0))*Podrobnosti[[#This Row],[ODHADOVANÁ PRÁCA]]","v":{"v":5250,"d":"5,250 EUR"}},{"$f":"INDEX(Parametre[],MATCH(Podrobnosti[[#This Row],[TYP PROJEKTU]],Parametre[TYP PROJEKTU],0),MATCH(Podrobnosti[[#Headers],[OBCHODNÝ PRÁVNIK]],Parametre[#Headers],0))*INDEX('PARAMETRE PROJEKTU'!$B$12:$H$12,1,MATCH(Podrobnosti[[#Headers],[OBCHODNÝ PRÁVNIK]],Parametre[#Headers],0))*Podrobnosti[[#This Row],[ODHADOVANÁ PRÁCA]]","v":{"v":0,"d":"0 EUR"}},{"$f":"INDEX(Parametre[],MATCH(Podrobnosti[[#This Row],[TYP PROJEKTU]],Parametre[TYP PROJEKTU],0),MATCH(Podrobnosti[[#Headers],[OBHAJCA]],Parametre[#Headers],0))*INDEX('PARAMETRE PROJEKTU'!$B$12:$H$12,1,MATCH(Podrobnosti[[#Headers],[OBHAJCA]],Parametre[#Headers],0))*Podrobnosti[[#This Row],[ODHADOVANÁ PRÁCA]]","v":{"v":0,"d":"0 EUR"}},{"$f":"INDEX(Parametre[],MATCH(Podrobnosti[[#This Row],[TYP PROJEKTU]],Parametre[TYP PROJEKTU],0),MATCH(Podrobnosti[[#Headers],[PRÁVNIK ŠPECIALIZUJÚCI SA NA DUŠEVNÉ VLASNTÍCTVO]],Parametre[#Headers],0))*INDEX('PARAMETRE PROJEKTU'!$B$12:$H$12,1,MATCH(Podrobnosti[[#Headers],[PRÁVNIK ŠPECIALIZUJÚCI SA NA DUŠEVNÉ VLASNTÍCTVO]],Parametre[#Headers],0))*Podrobnosti[[#This Row],[ODHADOVANÁ PRÁCA]]","v":{"v":24750,"d":"24,750 EUR"}},{"$f":"INDEX(Parametre[],MATCH(Podrobnosti[[#This Row],[TYP PROJEKTU]],Parametre[TYP PROJEKTU],0),MATCH(Podrobnosti[[#Headers],[PRÁVNIK ŠPECIALIZUJÚCI SA NA BANKROTY]],Parametre[#Headers],0))*INDEX('PARAMETRE PROJEKTU'!$B$12:$H$12,1,MATCH(Podrobnosti[[#Headers],[PRÁVNIK ŠPECIALIZUJÚCI SA NA BANKROTY]],Parametre[#Headers],0))*Podrobnosti[[#This Row],[ODHADOVANÁ PRÁCA]]","v":{"v":0,"d":"0 EUR"}},{"$f":"INDEX(Parametre[],MATCH(Podrobnosti[[#This Row],[TYP PROJEKTU]],Parametre[TYP PROJEKTU],0),MATCH(Podrobnosti[[#Headers],[ADMINISTRATÍVNI ZAMESTNANCI]],Parametre[#Headers],0))*INDEX('PARAMETRE PROJEKTU'!$B$12:$H$12,1,MATCH(Podrobnosti[[#Headers],[ADMINISTRATÍVNI ZAMESTNANCI]],Parametre[#Headers],0))*Podrobnosti[[#This Row],[ODHADOVANÁ PRÁCA]]","v":{"v":5625,"d":"5,625 EUR"}},{"$f":"INDEX(Parametre[],MATCH(Podrobnosti[[#This Row],[TYP PROJEKTU]],Parametre[TYP PROJEKTU],0),MATCH(Podrobnosti[[#Headers],[HLAVNÝ PARTNER]],Parametre[#Headers],0))*INDEX('PARAMETRE PROJEKTU'!$B$12:$H$12,1,MATCH(Podrobnosti[[#Headers],[HLAVNÝ PARTNER]],Parametre[#Headers],0))*Podrobnosti[[#This Row],[SKUTOČNÁ PRÁCA]]","v":{"v":5075,"d":"5,075 EUR"}},{"$f":"INDEX(Parametre[],MATCH(Podrobnosti[[#This Row],[TYP PROJEKTU]],Parametre[TYP PROJEKTU],0),MATCH(Podrobnosti[[#Headers],[OBCHODNÝ PRÁVNIK]],Parametre[#Headers],0))*INDEX('PARAMETRE PROJEKTU'!$B$12:$H$12,1,MATCH(Podrobnosti[[#Headers],[OBCHODNÝ PRÁVNIK]],Parametre[#Headers],0))*Podrobnosti[[#This Row],[SKUTOČNÁ PRÁCA]]","v":{"v":0,"d":"0 EUR"}},{"$f":"INDEX(Parametre[],MATCH(Podrobnosti[[#This Row],[TYP PROJEKTU]],Parametre[TYP PROJEKTU],0),MATCH(Podrobnosti[[#Headers],[OBHAJCA]],Parametre[#Headers],0))*INDEX('PARAMETRE PROJEKTU'!$B$12:$H$12,1,MATCH(Podrobnosti[[#Headers],[OBHAJCA]],Parametre[#Headers],0))*Podrobnosti[[#This Row],[SKUTOČNÁ PRÁCA]]","v":{"v":0,"d":"0 EUR"}},{"$f":"INDEX(Parametre[],MATCH(Podrobnosti[[#This Row],[TYP PROJEKTU]],Parametre[TYP PROJEKTU],0),MATCH(Podrobnosti[[#Headers],[PRÁVNIK ŠPECIALIZUJÚCI SA NA DUŠEVNÉ VLASNTÍCTVO]],Parametre[#Headers],0))*INDEX('PARAMETRE PROJEKTU'!$B$12:$H$12,1,MATCH(Podrobnosti[[#Headers],[PRÁVNIK ŠPECIALIZUJÚCI SA NA DUŠEVNÉ VLASNTÍCTVO]],Parametre[#Headers],0))*Podrobnosti[[#This Row],[SKUTOČNÁ PRÁCA]]","v":{"v":23925,"d":"23,925 EUR"}},{"$f":"INDEX(Parametre[],MATCH(Podrobnosti[[#This Row],[TYP PROJEKTU]],Parametre[TYP PROJEKTU],0),MATCH(Podrobnosti[[#Headers],[PRÁVNIK ŠPECIALIZUJÚCI SA NA BANKROTY]],Parametre[#Headers],0))*INDEX('PARAMETRE PROJEKTU'!$B$12:$H$12,1,MATCH(Podrobnosti[[#Headers],[PRÁVNIK ŠPECIALIZUJÚCI SA NA BANKROTY]],Parametre[#Headers],0))*Podrobnosti[[#This Row],[SKUTOČNÁ PRÁCA]]","v":{"v":0,"d":"0 EUR"}},{"$f":"INDEX(Parametre[],MATCH(Podrobnosti[[#This Row],[TYP PROJEKTU]],Parametre[TYP PROJEKTU],0),MATCH(Podrobnosti[[#Headers],[ADMINISTRATÍVNI ZAMESTNANCI]],Parametre[#Headers],0))*INDEX('PARAMETRE PROJEKTU'!$B$12:$H$12,1,MATCH(Podrobnosti[[#Headers],[ADMINISTRATÍVNI ZAMESTNANCI]],Parametre[#Headers],0))*Podrobnosti[[#This Row],[SKUTOČNÁ PRÁCA]]","v":{"v":5437.5,"d":"5,438 EUR"}}]
[null,"Projekt 5","Súdne spory so zamestnancami",{"$f":"TODAY()+220","v":"2019-09-27"},{"$f":"TODAY()+250","v":"2019-10-27"},{"$f":"TODAY()+230","v":"2019-10-07"},{"$f":"TODAY()+259","v":"2019-11-05"},250,255,{"$f":"DAYS360(Podrobnosti[[#This Row],[ODHADOVANÝ ZAČIATOK]],Podrobnosti[[#This Row],[OKHADOVANÝ KONIEC]],FALSE)","v":30},{"$f":"DAYS360(Podrobnosti[[#This Row],[SKUTOČNÝ ZAČIATOK]],Podrobnosti[[#This Row],[SKUTOČNÝ KONIEC]],FALSE)","v":28},{"$f":"INDEX(Parametre[],MATCH(Podrobnosti[[#This Row],[TYP PROJEKTU]],Parametre[TYP PROJEKTU],0),MATCH(Podrobnosti[[#Headers],[HLAVNÝ PARTNER]],Parametre[#Headers],0))*INDEX('PARAMETRE PROJEKTU'!$B$12:$H$12,1,MATCH(Podrobnosti[[#Headers],[HLAVNÝ PARTNER]],Parametre[#Headers],0))*Podrobnosti[[#This Row],[ODHADOVANÁ PRÁCA]]","v":{"v":17500,"d":"17,500 EUR"}},{"$f":"INDEX(Parametre[],MATCH(Podrobnosti[[#This Row],[TYP PROJEKTU]],Parametre[TYP PROJEKTU],0),MATCH(Podrobnosti[[#Headers],[OBCHODNÝ PRÁVNIK]],Parametre[#Headers],0))*INDEX('PARAMETRE PROJEKTU'!$B$12:$H$12,1,MATCH(Podrobnosti[[#Headers],[OBCHODNÝ PRÁVNIK]],Parametre[#Headers],0))*Podrobnosti[[#This Row],[ODHADOVANÁ PRÁCA]]","v":{"v":6250,"d":"6,250 EUR"}},{"$f":"INDEX(Parametre[],MATCH(Podrobnosti[[#This Row],[TYP PROJEKTU]],Parametre[TYP PROJEKTU],0),MATCH(Podrobnosti[[#Headers],[OBHAJCA]],Parametre[#Headers],0))*INDEX('PARAMETRE PROJEKTU'!$B$12:$H$12,1,MATCH(Podrobnosti[[#Headers],[OBHAJCA]],Parametre[#Headers],0))*Podrobnosti[[#This Row],[ODHADOVANÁ PRÁCA]]","v":{"v":30000,"d":"30,000 EUR"}},{"$f":"INDEX(Parametre[],MATCH(Podrobnosti[[#This Row],[TYP PROJEKTU]],Parametre[TYP PROJEKTU],0),MATCH(Podrobnosti[[#Headers],[PRÁVNIK ŠPECIALIZUJÚCI SA NA DUŠEVNÉ VLASNTÍCTVO]],Parametre[#Headers],0))*INDEX('PARAMETRE PROJEKTU'!$B$12:$H$12,1,MATCH(Podrobnosti[[#Headers],[PRÁVNIK ŠPECIALIZUJÚCI SA NA DUŠEVNÉ VLASNTÍCTVO]],Parametre[#Headers],0))*Podrobnosti[[#This Row],[ODHADOVANÁ PRÁCA]]","v":{"v":0,"d":"0 EUR"}},{"$f":"INDEX(Parametre[],MATCH(Podrobnosti[[#This Row],[TYP PROJEKTU]],Parametre[TYP PROJEKTU],0),MATCH(Podrobnosti[[#Headers],[PRÁVNIK ŠPECIALIZUJÚCI SA NA BANKROTY]],Parametre[#Headers],0))*INDEX('PARAMETRE PROJEKTU'!$B$12:$H$12,1,MATCH(Podrobnosti[[#Headers],[PRÁVNIK ŠPECIALIZUJÚCI SA NA BANKROTY]],Parametre[#Headers],0))*Podrobnosti[[#This Row],[ODHADOVANÁ PRÁCA]]","v":{"v":0,"d":"0 EUR"}},{"$f":"INDEX(Parametre[],MATCH(Podrobnosti[[#This Row],[TYP PROJEKTU]],Parametre[TYP PROJEKTU],0),MATCH(Podrobnosti[[#Headers],[ADMINISTRATÍVNI ZAMESTNANCI]],Parametre[#Headers],0))*INDEX('PARAMETRE PROJEKTU'!$B$12:$H$12,1,MATCH(Podrobnosti[[#Headers],[ADMINISTRATÍVNI ZAMESTNANCI]],Parametre[#Headers],0))*Podrobnosti[[#This Row],[ODHADOVANÁ PRÁCA]]","v":{"v":9375,"d":"9,375 EUR"}},{"$f":"INDEX(Parametre[],MATCH(Podrobnosti[[#This Row],[TYP PROJEKTU]],Parametre[TYP PROJEKTU],0),MATCH(Podrobnosti[[#Headers],[HLAVNÝ PARTNER]],Parametre[#Headers],0))*INDEX('PARAMETRE PROJEKTU'!$B$12:$H$12,1,MATCH(Podrobnosti[[#Headers],[HLAVNÝ PARTNER]],Parametre[#Headers],0))*Podrobnosti[[#This Row],[SKUTOČNÁ PRÁCA]]","v":{"v":17850,"d":"17,850 EUR"}},{"$f":"INDEX(Parametre[],MATCH(Podrobnosti[[#This Row],[TYP PROJEKTU]],Parametre[TYP PROJEKTU],0),MATCH(Podrobnosti[[#Headers],[OBCHODNÝ PRÁVNIK]],Parametre[#Headers],0))*INDEX('PARAMETRE PROJEKTU'!$B$12:$H$12,1,MATCH(Podrobnosti[[#Headers],[OBCHODNÝ PRÁVNIK]],Parametre[#Headers],0))*Podrobnosti[[#This Row],[SKUTOČNÁ PRÁCA]]","v":{"v":6375,"d":"6,375 EUR"}},{"$f":"INDEX(Parametre[],MATCH(Podrobnosti[[#This Row],[TYP PROJEKTU]],Parametre[TYP PROJEKTU],0),MATCH(Podrobnosti[[#Headers],[OBHAJCA]],Parametre[#Headers],0))*INDEX('PARAMETRE PROJEKTU'!$B$12:$H$12,1,MATCH(Podrobnosti[[#Headers],[OBHAJCA]],Parametre[#Headers],0))*Podrobnosti[[#This Row],[SKUTOČNÁ PRÁCA]]","v":{"v":30600,"d":"30,600 EUR"}},{"$f":"INDEX(Parametre[],MATCH(Podrobnosti[[#This Row],[TYP PROJEKTU]],Parametre[TYP PROJEKTU],0),MATCH(Podrobnosti[[#Headers],[PRÁVNIK ŠPECIALIZUJÚCI SA NA DUŠEVNÉ VLASNTÍCTVO]],Parametre[#Headers],0))*INDEX('PARAMETRE PROJEKTU'!$B$12:$H$12,1,MATCH(Podrobnosti[[#Headers],[PRÁVNIK ŠPECIALIZUJÚCI SA NA DUŠEVNÉ VLASNTÍCTVO]],Parametre[#Headers],0))*Podrobnosti[[#This Row],[SKUTOČNÁ PRÁCA]]","v":{"v":0,"d":"0 EUR"}},{"$f":"INDEX(Parametre[],MATCH(Podrobnosti[[#This Row],[TYP PROJEKTU]],Parametre[TYP PROJEKTU],0),MATCH(Podrobnosti[[#Headers],[PRÁVNIK ŠPECIALIZUJÚCI SA NA BANKROTY]],Parametre[#Headers],0))*INDEX('PARAMETRE PROJEKTU'!$B$12:$H$12,1,MATCH(Podrobnosti[[#Headers],[PRÁVNIK ŠPECIALIZUJÚCI SA NA BANKROTY]],Parametre[#Headers],0))*Podrobnosti[[#This Row],[SKUTOČNÁ PRÁCA]]","v":{"v":0,"d":"0 EUR"}},{"$f":"INDEX(Parametre[],MATCH(Podrobnosti[[#This Row],[TYP PROJEKTU]],Parametre[TYP PROJEKTU],0),MATCH(Podrobnosti[[#Headers],[ADMINISTRATÍVNI ZAMESTNANCI]],Parametre[#Headers],0))*INDEX('PARAMETRE PROJEKTU'!$B$12:$H$12,1,MATCH(Podrobnosti[[#Headers],[ADMINISTRATÍVNI ZAMESTNANCI]],Parametre[#Headers],0))*Podrobnosti[[#This Row],[SKUTOČNÁ PRÁCA]]","v":{"v":9562.5,"d":"9,563 EUR"}}]
[null,"CELKOVÁ HODNOTA",{"$nulls":5},{"$f":"SUBTOTAL(109,Podrobnosti[ODHADOVANÁ PRÁCA])","v":1500},{"$f":"SUBTOTAL(109,Podrobnosti[SKUTOČNÁ PRÁCA])","v":1510},{"$f":"SUBTOTAL(109,Podrobnosti[ODHADOVANÉ TRVANIE])","v":190},{"$f":"SUBTOTAL(109,Podrobnosti[SKUTOČNÉ TRVANIE])","v":170}]

{"sheet":"SÚČTY PROJEKTU","index":3,"n_rows":11,"n_cols":16,"rows_kept":11,"merged":[[3,2,3,7],[3,8,3,13],[3,15,14,19]]}
["Tento hárok uvádza súčty projektu. V bunke napravo sa automaticky aktualizuje názov spoločnosti. V bunkách v tomto stĺpci nájdete užitočné pokyny. Začnite stlačením šípky nadol.",{"$f":"'PARAMETRE PROJEKTU'!B1","v":"Názov spoločnosti"}]
["V bunke napravo sa nachádza nadpis tohto hárka.",{"$f":"'PARAMETRE PROJEKTU'!B2","v":"Plánovanie projektov pre advokátske kancelárie"}]
["V bunke napravo sa nachádza správa o dôvernosti.",{"$f":"'PARAMETRE PROJEKTU'!B3","v":"Názov spoločnosti je dôverný"}]
["V bunke C4 je označenie odhadované, v bunke I4 je označenie skutočné hodnoty a v bunke P4 je informačný tip.",null,"ODHADOVANÉ",{"$nulls":5},"SKUTOČNÉ",{"$nulls":6},"INFORMÁCIE: \nKontingenčná tabuľka sa neobnoví automaticky.  Ak ju chcete obnoviť, vyberte ju (ľubovoľnú bunku v kontingenčnej tabuľke) a potom na karte NÁSTROJE PRE KONTINGENČNÉ TABUĽKY | ANALYZOVAŤ na páse s nástrojmi vyberte položku Obnoviť.  Prípadne v kontingenčnej tabuľke stlačte kombináciu klávesov SHIFT + F10 a potom vyberte položku Obnoviť."]
["Kontingenčná tabuľka začínajúca v bunke napravo sa aktualizuje automaticky.","NÁZOV PROJEKTU","HLAVNÝ PARTNER ","PODNIK ","OBHAJCA ","DUŠEVNÉ VLASTNÍCTVO ","BANKROT ","ADMINISTRATÍVNI ZAMESTNANCI ","HLAVNÝ PARTNER  ","PODNIK  ","OBHAJCA  ","BANKROT  ","DUŠEVNÉ VLASTNÍCTVO  ","ADMINISTRATÍVNI ZAMESTNANCI  "]
[null,"Projekt 1",{"v":7000,"d":"7,000.00 EUR"},{"v":20000,"d":"20,000.00 EUR"},{"v":0,"d":"0.00 EUR"},{"v":0,"d":"0.00 EUR"},{"v":0,"d":"0.00 EUR"},{"v":12500,"d":"12,500.00 EUR"},{"v":7700,"d":"7,700.00 EUR"},{"v":22000,"d":"22,000.00 EUR"},{"v":0,"d":"0.00 EUR"},{"v":0,"d":"0.00 EUR"},{"v":0,"d":"0.00 EUR"},{"v":13750,"d":"13,750.00 EUR"}]
[null,"Projekt 2",{"v":14000,"d":"14,000.00 EUR"},{"v":40000,"d":"40,000.00 EUR"},{"v":0,"d":"0.00 EUR"},{"v":11000,"d":"11,000.00 EUR"},{"v":0,"d":"0.00 EUR"},{"v":20000,"d":"20,000.00 EUR"},{"v":13650,"d":"13,650.00 EUR"},{"v":39000,"d":"39,000.00 EUR"},{"v":0,"d":"0.00 EUR"},{"v":10725,"d":"10,725.00 EUR"},{"v":0,"d":"0.00 EUR"},{"v":19500,"d":"19,500.00 EUR"}]
[null,"Projekt 3",{"v":35000,"d":"35,000.00 EUR"},{"v":0,"d":"0.00 EUR"},{"v":75000,"d":"75,000.00 EUR"},{"v":0,"d":"0.00 EUR"},{"v":0,"d":"0.00 EUR"},{"v":18750,"d":"18,750.00 EUR"},{"v":35000,"d":"35,000.00 EUR"},{"v":0,"d":"0.00 EUR"},{"v":75000,"d":"75,000.00 EUR"},{"v":0,"d":"0.00 EUR"},{"v":0,"d":"0.00 EUR"},{"v":18750,"d":"18,750.00 EUR"}]
[null,"Projekt 4",{"v":5250,"d":"5,250.00 EUR"},{"v":0,"d":"0.00 EUR"},{"v":0,"d":"0.00 EUR"},{"v":24750,"d":"24,750.00 EUR"},{"v":0,"d":"0.00 EUR"},{"v":5625,"d":"5,625.00 EUR"},{"v":5075,"d":"5,075.00 EUR"},{"v":0,"d":"0.00 EUR"},{"v":0,"d":"0.00 EUR"},{"v":23925,"d":"23,925.00 EUR"},{"v":0,"d":"0.00 EUR"},{"v":5437.5,"d":"5,437.50 EUR"}]
[null,"Projekt 5",{"v":17500,"d":"17,500.00 EUR"},{"v":6250,"d":"6,250.00 EUR"},{"v":30000,"d":"30,000.00 EUR"},{"v":0,"d":"0.00 EUR"},{"v":0,"d":"0.00 EUR"},{"v":9375,"d":"9,375.00 EUR"},{"v":17850,"d":"17,850.00 EUR"},{"v":6375,"d":"6,375.00 EUR"},{"v":30600,"d":"30,600.00 EUR"},{"v":0,"d":"0.00 EUR"},{"v":0,"d":"0.00 EUR"},{"v":9562.5,"d":"9,562.50 EUR"}]
[null,"Celkový súčet",{"v":78750,"d":"78,750.00 EUR"},{"v":66250,"d":"66,250.00 EUR"},{"v":105000,"d":"105,000.00 EUR"},{"v":35750,"d":"35,750.00 EUR"},{"v":0,"d":"0.00 EUR"},{"v":66250,"d":"66,250.00 EUR"},{"v":79275,"d":"79,275.00 EUR"},{"v":67375,"d":"67,375.00 EUR"},{"v":105600,"d":"105,600.00 EUR"},{"v":34650,"d":"34,650.00 EUR"},{"v":0,"d":"0.00 EUR"},{"v":67000,"d":"67,000.00 EUR"}]